Cogmind - Beta 10.2 @@@ ROGUE MODE // 2020.12.25 @ 09:07:44 Player: Demise Result: Destroyed by DD-2ZW(M) with Battle Cannon Performance ------------- Evolutions (3) 1500 Regions Visited (10) 2000 Robots Destroyed (175) 875 Value Destroyed (5209) 5209 Prototype IDs (34) 680 Alien Tech Used (0) 0 Bonus (1420) 1420 TOTAL SCORE: 11684 Bonus ------- High Alert Combat Kills 1045 Follower Combat Kills 75 Aligned with FarCom 300 Cogmind --------- Core Integrity 0/700 Matter 300/300 Energy 290/290 System Corruption 0% Temperature Cool (0) Movement Walking (180) Ox2 Location -7/Lower Caves Parts ------- > --- POWER (1) -------- Improved Deuterium Engine > --- PROPULSION (2) --- Advanced Myomer Leg Advanced Myomer Leg > --- UTILITY (8) ------ High-capacity Storage Unit High-capacity Storage Unit High-capacity Storage Unit High-capacity Storage Unit Advanced Core Analyzer Improved Utility Shielding Hacking Suite System Shield > --- WEAPON (2) ------- Flak Gun Great Axe > --- INVENTORY (36) --- Micro Nuclear Core Micro Nuclear Core Makeshift Power Source Armored Huge Wheel Experimental Heat Sink Medium Matter Pod (100) Gravity Neutralizing Apparatus Long-range Terrain Scanner Experimental Targeting Computer Experimental Targeting Computer Advanced Launcher Guidance Computer Improved Target Analyzer Improved Armor Integrity Analyzer Advanced Transmission Jammer Improved Propulsion Shielding Improved Utility Shielding Improved Utility Shielding Improved Utility Shielding Improved Medium Armor Plating 8R-AWN's Armor/EX Hacking Suite System Backup Module Recalibrator Particle Gun Gatling Laser Firepult Autogun 8R-AWN's Boregun Proton Missile Launcher Heavy Rocket Launcher Remote Datajack Plasma Cutter Deploy-a-Sentry Peak State ------------ > --- POWER ------------ Improved Deuterium Engine > --- PROPULSION ------- Advanced Myomer Leg Advanced Myomer Leg > --- UTILITY ---------- High-capacity Storage Unit High-capacity Storage Unit High-capacity Storage Unit High-capacity Storage Unit Long-range Terrain Scanner Improved Utility Shielding Hacking Suite System Shield > --- WEAPON ----------- Precision Assault Rifle 8R-AWN's Boregun > --- INVENTORY -------- Micro Nuclear Core Micro Nuclear Core Makeshift Power Source Improved Treads Experimental Heat Sink Medium Matter Pod Gravity Neutralizing Apparatus Experimental Targeting Computer Experimental Targeting Computer Advanced Launcher Guidance Computer Improved Target Analyzer Advanced Core Analyzer Improved Armor Integrity Analyzer Advanced Transmission Jammer Improved Propulsion Shielding Improved Utility Shielding Improved Utility Shielding Improved Utility Shielding Improved Medium Armor Plating 8R-AWN's Armor/EX Hacking Suite System Backup Module Recalibrator PSU Rigger Guided Plasma Cannon Firepult Flak Gun 8R-AWN's Boregun Proton Missile Launcher Heavy Rocket Launcher Remote Datajack Plasma Cutter Great Axe Deploy-a-Sentry [Rating: 71] Favorites ----------- Power Heavy Ion Engine Engine Heavy Ion Engine Power Core Reinforced Fission Core Propulsion Improved Treads Treads Improved Treads Leg Advanced Myomer Leg Wheel Armored Huge Wheel Utility High-capacity Storage Unit Device Long-range Terrain Scanner Storage High-capacity Storage Unit Processor Salvage Targeting Computer Hackware Hacking Suite Protection Improved Power Shielding Weapon Heavy Assault Rifle Energy Gun Precision Beam Rifle Energy Cannon Guided Plasma Cannon Ballistic Gun Heavy Assault Rifle Launcher Heavy Missile Launcher Special Weapon Plasma Cutter Slashing Weapon Great Axe Build | -11 -10 -10 -9 -9 -9 -8 -8 -7 -7 -7 ------- Run | Scr Mat Min Mat Min Exi Min Mat Fac Low Low Slots Evolved 6 | . . . 2 . . . 2 2 . . Power . | . . . . . . . . . . . Propulsion . | . . . . . . . . . . . Utility 6 | . . . 2 . . . 2 2 . . Weapon . | . . . . . . . . . . . Parts Attached 195 | 6 15 6 32 1 30 2 18 72 9 4 Power 17 | 1 2 2 4 . 1 . 1 3 2 1 Engine 14 | 1 2 1 4 . 1 . . 2 2 1 Core 3 | . . 1 . . . . 1 1 . . Reactor . | . . . . . . . . . . . Propulsion 28 | 2 4 . 3 . 2 . 4 13 . . Treads 23 | . 4 . 3 . 2 . 4 10 . . Leg 2 | . . . . . . . . 2 . . Wheel 3 | 2 . . . . . . . 1 . . Hover . | . . . . . . . . . . . Flight . | . . . . . . . . . . . Utility 61 | 1 5 . 8 1 16 . 5 21 2 2 Device 16 | . . . 2 . 3 . 1 8 1 1 Storage 15 | 1 4 . 1 . 9 . . . . . Processor 4 | . 1 . . . 2 . . . . 1 Hackware 6 | . . . . . . . 3 3 . . Protection 20 | . . . 5 1 2 . 1 10 1 . Artifact . | . . . . . . . . . . . Weapon 89 | 2 4 4 17 . 11 2 8 35 5 1 Energy Gun 1 | . . . . . . . . 1 . . Energy Cannon 4 | . . . . . . . 1 2 1 . Ballistic Gun 62 | 2 2 3 13 . 7 1 4 26 3 1 Ballistic Cannon . | . . . . . . . . . . . Launcher 7 | . . 1 . . 2 1 . 3 . . Special Weapon 9 | . 2 . 4 . 2 . . 1 . . Impact Weapon . | . . . . . . . . . . . Slashing Weapon 6 | . . . . . . . 3 2 1 . Piercing Weapon . | . . . . . . . . . . . Special Melee Weapon . | . . . . . . . . . . . Unidentified Prototypes 8 | . . . 1 . 4 . . 3 . . Parts Lost 27 | . . . . . 4 . 3 17 2 1 Power 1 | . . . . . . . 1 . . . Propulsion 8 | . . . . . 2 . . 6 . . Utility 6 | . . . . . 2 . 1 3 . . Weapon 12 | . . . . . . . 1 8 2 1 Highest Loss Streak 5 | . . . . . 1 . 1 5 2 1 Average Slot Usage (%) 98 | . 99 100 99 100 99 100 98 97 99 99 Engine 7 | . 14 13 7 11 11 11 3 1 3 7 Core 2 | . . . 3 . . . 5 5 3 . Treads 18 | . 26 28 22 22 22 22 18 12 . . Leg 1 | . . . . . . . . . 15 15 Device 1 | . . . . . . . 1 2 5 1 Storage 29 | . 28 28 30 33 26 44 36 30 30 30 Processor 2 | . . . . . 9 . . . . 2 Hackware 5 | . . . . . . . 15 14 15 15 Protection 7 | . . . 12 11 7 . . 11 8 10 Ballistic Gun 18 | . 25 27 21 22 20 21 16 12 12 6 Naked Turns . | . . . . . . . . . . . Heaviest Build 180 | 13 55 56 84 85 142 142 158 180 152 148 Greatest Support 60 | 20 46 46 46 46 46 46 46 60 60 60 Greatest Overweight (x) 6 | . 2 1 1 1 3 3 3 6 2 2 Average Overweight (x) 1 | . . 1 1 1 1 3 3 3 2 2 Largest Inventory Capacity 36 | 6 18 18 24 24 36 36 36 36 36 36 Average Capacity 27 | 5 15 18 22 24 23 36 36 36 36 36 Most Carried 36 | 6 18 18 24 24 36 36 36 36 36 36 Average Carried 26 | 3 13 17 22 23 21 36 35 34 35 34 Final Capacity 36 | 6 18 18 24 24 36 36 36 36 36 36 Final Carried 36 | 6 18 18 24 24 36 36 35 34 36 36 Class Distribution -------------------- 74% | Hauler-Mutant 25% | Mutant Dominant Class ---------------- Mutant | -10/Materials Mutant | -10/Mines Hauler-Mutant | -9/Materials Hauler-Mutant | -9/Mines Hauler-Mutant | -9/Exiles Hauler-Mutant | -8/Mines Hauler-Mutant | -8/Materials Hauler-Mutant | -7/Factory Hauler-Mutant | -7/Lower Caves Hauler-Mutant | -7/Lower Caves Resources | -11 -10 -10 -9 -9 -9 -8 -8 -7 -7 -7 ----------- Run | Scr Mat Min Mat Min Exi Min Mat Fac Low Low Matter Collected 5608 | 243 482 173 826 6 926 49 570 2084 196 53 Remotely . | . . . . . . . . . . . Salvage Created 7033 | 148 533 243 1326 . 604 50 921 2703 432 73 Parts 465 | 7 36 17 103 . 78 4 47 154 15 4 Haulers Intercepted 9 | . 2 . 5 . . . 1 1 . . Recyclers Shooed 6 | 2 2 2 . . . . . . . . Parts Field Recycled . | . . . . . . . . . . . Retrieved Matter . | . . . . . . . . . . . Parts Self-Destructed 18 | . . . . . . . . . 16 2 Prevented 1 | . . . . . . . . . . 1 Kills | -11 -10 -10 -9 -9 -9 -8 -8 -7 -7 -7 ------- Run | Scr Mat Min Mat Min Exi Min Mat Fac Low Low Combat Hostiles Destroyed 124 | . 8 5 24 . 3 5 18 56 4 1 Melee 3 | . . . . . . . . 2 . 1 Guns 103 | . 8 2 24 . . 3 18 44 4 . Cannons 2 | . . . . . 1 . . 1 . . AOE 16 | . . 3 . . 2 2 . 9 . . Classes Destroyed 17 | 2 5 1 2 . 2 . 2 3 . . Worker 5 | . 1 . 2 . . . 1 1 . . Builder 4 | . . 2 . . . . . 2 . . Tunneler 5 | 3 . . 1 . . . . 1 . . Hauler 9 | . 2 . 5 . . . 1 1 . . Recycler 7 | 1 2 1 . . . . . 3 . . Operator 5 | . . . 1 . . . 1 3 . . Watcher 7 | . 3 . 4 . . . . . . . Swarmer 34 | . 6 3 6 . . 5 3 11 . . Grunt 56 | . 2 2 12 . . . 10 27 3 . Brawler 5 | . . . . . . . 2 3 . . Duelist 2 | . . . . . . . . 2 . . Protector 1 | . . . . . . . . 1 . . Sentry 17 | . . . 6 . . . 2 7 1 1 Hunter 1 | . . . . . . . 1 . . . Programmer 5 | . . . . . . . . 5 . . Zionite 8 | . . . . . 8 . . . . . Assembled 2 | . . . . . 2 . . . . . Best Kill Streak 9 | 3 5 3 3 . 4 3 6 9 2 1 Combat Bots Only 8 | . 5 3 3 . 2 3 5 8 2 1 Max Kills in Single Turn 5 | 1 1 3 1 . 2 1 2 5 1 1 Gunslinging 1 | . . . . . . . . 1 . . Exploded 3 | . . 3 . . 2 1 . 2 . . Melee 1 | . . . . . . . . 1 . 1 Uniques/NPCs Destroyed 4 | . . . . . 4 . . . . . 8R-AWN (-9/Exiles) EX-BIN (-9/Exiles) EX-HEX (-9/Exiles) EX-DEC (-9/Exiles) Combat | -11 -10 -10 -9 -9 -9 -8 -8 -7 -7 -7 -------- Run | Scr Mat Min Mat Min Exi Min Mat Fac Low Low Damage Taken 8963 | . 383 109 817 . 975 125 975 5037 350 192 Core 1295 | . 82 28 109 . 240 8 117 612 53 46 Absorbed by Shields 43 | . . . . . . . . 43 . . Core Remaining (%) 61 | 100 . 56 . . . 10 78 . . . Volleys Fired 616 | 10 55 17 107 . 162 9 64 178 11 3 Largest 2 | 2 2 2 2 . 2 2 2 2 2 1 Hottest 120 | 40 100 50 100 . 46 62 120 120 120 30 Shots Fired 1063 | 20 105 34 203 . 224 17 119 321 17 3 Gun 923 | 20 100 33 192 . 126 15 117 302 15 3 Cannon 16 | . . . . . . . 2 12 2 . Launcher 17 | . . 1 . . 8 2 . 6 . . Special 107 | . 5 . 11 . 90 . . 1 . . Kinetic 916 | 20 100 33 192 . 126 15 117 295 15 3 Thermal 129 | . 5 . 11 . 90 . 2 19 2 . Explosive 17 | . . 1 . . 8 2 . 6 . . Electromagnetic . | . . . . . . . . . . . Robot Hit Streak 22 | 3 18 8 22 . 19 5 15 15 15 1 Robot Miss Streak 8 | 4 5 4 5 . 3 1 2 8 3 1 Penetration Max 2 | . . . . . . . . . 2 . Secondary Targets 13 | . 3 . . . . . 5 4 1 . Max Gunslinging Chain 1 | . 1 . . . . . 1 1 1 . Shots Hit Robots 751 | 9 63 22 126 . 150 7 91 257 17 9 Core Hits 446 | 5 23 13 53 . 53 5 41 237 13 3 Critical Hits 26 | . 2 . 2 . 13 . 1 6 2 . Critical Kills 4 | . . . 1 . . . . 2 1 . Critical Parts Destroyed 11 | . 2 . 1 . 2 . 1 4 1 . Melee Attacks 43 | . . . . . . . 7 17 6 13 Impact . | . . . . . . . . . . . Slashing 43 | . . . . . . . 7 17 6 13 Piercing . | . . . . . . . . . . . Sneak Attacks 1 | . . . . . . . 1 . . . Combat Hostiles . | . . . . . . . . . . . Follow-up Attacks . | . . . . . . . . . . . Damage Inflicted 15248 | 135 776 359 1756 . 2011 405 1572 7057 877 300 Guns 10527 | 135 774 216 1737 . 1157 110 1407 4790 185 16 Cannons 430 | . . . . . . . 69 290 71 . Explosions 2750 | . . 129 . . 467 295 . 1859 . . Melee 1077 | . . . . . . . 96 76 621 284 Ramming 77 | . 2 14 19 . . . . 42 . . Kinetic 10442 | 135 774 216 1737 . 1157 110 1407 4705 185 16 Thermal 1336 | . . . . . 387 . 69 809 71 . Explosive 2316 | . . 129 . . 467 295 . 1425 . . Electromagnetic . | . . . . . . . . . . . Impact . | . . . . . . . . . . . Slashing 1077 | . . . . . . . 96 76 621 284 Piercing . | . . . . . . . . . . . Highest Corruption 5 | . 1 1 . . . . 5 3 . . Average Corruption 1 | . 1 1 . . . . 5 2 . . Corruption Purged 3 | . . . . . . . . 3 . . Effects 25 | . 4 4 . . . . 2 15 . . Message Errors 11 | . 1 3 . . . . 1 6 . . Matter Fused 2 | . . . . . . . . 2 . . Heat Flow Errors 1 | . . . . . . . . 1 . . Energy Discharges 4 | . . 1 . . . . . 3 . . Data Loss (minor) 2 | . . . . . . . . 2 . . Targeting Errors 5 | . 3 . . . . . 1 1 . . Overload Shots . | . . . . . . . . . . . Overflow Damage 409 | . . 3 . . 8 61 . 213 102 22 Projectiles 25 | . . . . . . . . 25 . . Explosions 244 | . . 3 . . 8 61 . 172 . . Melee 140 | . . . . . . . . 16 102 22 Knockbacks 1 | . . . . . . . . 1 . . Impact 1 | . . . . . . . . 1 . . Kinetic . | . . . . . . . . . . . Secondary . | . . . . . . . . . . . Self-Inflicted Damage 250 | . . . . . . 37 . 213 . . Shots 5 | . . . . . . 1 . 4 . . Rammed 5 | . 2 1 1 . . . . 1 . . Targets Rammed 6 | . 2 1 1 . . . . 2 . . Kicked . | . . . . . . . . . . . Crushed 1 | . . . . . . . . 1 . . Highest Temperature 390 | . 40 9 147 . 2 . 134 390 132 . Average Temperature 53 | . 11 7 33 . 2 . 14 81 57 . Received Heat Transfer 2449 | . 99 48 300 . 63 . 369 1411 159 . Effects 2 | . . . . . . . . 2 . . Interference 1 | . . . . . . . . 1 . . Matter Decay 1 | . . . . . . . . 1 . . Siege Activations . | . . . . . . . . . . . Robots Corrupted . | . . . . . . . . . . . Combat Hostiles . | . . . . . . . . . . . Parts Fried . | . . . . . . . . . . . Impact Corruptions 1 | . . . . . . . . 1 . . Robots Melted . | . . . . . . . . . . . Combat Hostiles . | . . . . . . . . . . . Parts Melted 4 | . . . . . 2 . . 2 . . Heat Transferred 2571 | . . . . . 1095 . 160 1156 160 . Parts Sabotaged . | . . . . . . . . . . . Parts Stolen 2 | . . . . . . . . . . 2 Parts Stripped . | . . . . . . . . . . . Power Chain Reactions . | . . . . . . . . . . . Missiles Intercepted . | . . . . . . . . . . . Alert | -11 -10 -10 -9 -9 -9 -8 -8 -7 -7 -7 ------- Run | Scr Mat Min Mat Min Exi Min Mat Fac Low Low Peak Influence 1520 | 20 287 136 363 114 . 189 275 1520 . . Initial 114 | . 13 6 . 114 . . 73 82 . . Average 352 | 6 74 62 190 76 . 106 143 797 . . Maximum Alert Level 4 | . 1 . 1 . . . 1 4 . . Low Security (%) 56 | 100 94 100 48 100 . 100 87 13 . . Level 1 15 | . 5 . 51 . . . 12 3 . . Level 2 7 | . . . . . . . . 23 . . Level 3 13 | . . . . . . . . 39 . . Level 4 6 | . . . . . . . . 20 . . Level 5 . | . . . . . . . . . . . High Security . | . . . . . . . . . . . Max Security . | . . . . . . . . . . . Squads Dispatched 24 | . . . 1 1 . . 3 19 . . Investigation 5 | . . . 1 1 . . . 3 . . Extermination 5 | . . . . . . . . 5 . . Reinforcement 8 | . . . . . . . 3 5 . . Assault 5 | . . . . . . . . 5 . . Garrison 1 | . . . . . . . . 1 . . Intercept . | . . . . . . . . . . . Construction Impeded 1 | . . . . . . . . 1 . . Haulers Reinforced 1 | . . . . . . . . 1 . . Stealth | -11 -10 -10 -9 -9 -9 -8 -8 -7 -7 -7 --------- Run | Scr Mat Min Mat Min Exi Min Mat Fac Low Low Distress Signals 7 | . 1 . 3 . . . 2 1 . . Communications Jammed . | . . . . . . . . . . . Distress Signals . | . . . . . . . . . . . Times Spotted 223 | . 15 10 42 . 23 9 26 89 4 5 Peak Tracking Total 9 | . 4 3 4 . 9 5 4 6 3 2 Tactical Retreats 24 | . . . 6 . 3 2 . 13 . . Traps | -11 -10 -10 -9 -9 -9 -8 -8 -7 -7 -7 ------- Run | Scr Mat Min Mat Min Exi Min Mat Fac Low Low Traps Triggered 6 | . 1 . 1 . . . . 4 . . Indirectly . | . . . . . . . . . . . Trap Hack Attempts . | . . . . . . . . . . . Triggered . | . . . . . . . . . . . Disarmed . | . . . . . . . . . . . Reprogrammed . | . . . . . . . . . . . Reused 4 | . . . . . 4 . . . . . Traps Extracted . | . . . . . . . . . . . Installed 4 | . . . . . 4 . . . . . Triggered 1 | . . . . . . . . . . 1 Power Sources Rigged 1 | . . . . . . . . 1 . . Exploded 2 | . . . . . 2 . . . . . Machines | -11 -10 -10 -9 -9 -9 -8 -8 -7 -7 -7 ---------- Run | Scr Mat Min Mat Min Exi Min Mat Fac Low Low Machines Disabled 29 | . 1 . 2 . 12 . . 13 . 1 Max in Single Turn 6 | . 1 . 1 . 3 . . 6 . 1 Garrison Access 1 | . . . . . . . . 1 . . Machines Sabotaged . | . . . . . . . . . . . Garrisons Compromised . | . . . . . . . . . . . Overloaded Fab Kills . | . . . . . . . . . . . Fab Network Shutdowns . | . . . . . . . . . . . Hacking | -11 -10 -10 -9 -9 -9 -8 -8 -7 -7 -7 --------- Run | Scr Mat Min Mat Min Exi Min Mat Fac Low Low Machines Accessed 47 | . 11 . 14 2 2 . 7 11 . . Terminals 31 | . 8 . 11 . . . 6 6 . . Fabricators 1 | . . . . . . . . 1 . . Repair Stations 2 | . 1 . 1 . . . . . . . Recycling Units 6 | . 2 . 2 . . . . 2 . . Scanalyzers 2 | . . . . . . . 1 1 . . Garrison Access 1 | . . . . . . . . 1 . . Total Hacks 146 | . 38 . 44 2 2 . 31 29 . . Successful 83 | . 21 . 21 2 2 . 22 15 . . Failed 60 | . 16 . 22 . . . 8 14 . . Catastrophic 6 | . 1 . 2 . . . . 3 . . Database Lockouts 3 | . 1 . 1 . . . 1 . . . Manual 101 | . 25 . 35 . 1 . 25 15 . . Terminals 113 | . 34 . 38 . . . 26 15 . . Fabricators 3 | . . . . . . . . 3 . . Repair Stations 4 | . 2 . 2 . . . . . . . Recycling Units 11 | . 2 . 4 . . . . 5 . . Scanalyzers 8 | . . . . . . . 5 3 . . Garrison Access 3 | . . . . . . . . 3 . . Terminal Hacks 33 | . 10 . 7 2 2 . 9 3 . . Record 1 | . . . . . 1 . . . . . Part Schematic 2 | . . . . . . . 2 . . . Robot Analysis 9 | . 5 . 3 . . . 1 . . . Prototype ID Bank 1 | . . . 1 . . . . . . . Open Door 2 | . . . . 2 . . . . . . Branch Access Points 4 | . 1 . 1 . . . 1 1 . . Terminal Index 4 | . 1 . 1 . . . 1 1 . . Scanalyzer Index 1 | . . . . . . . 1 . . . Garrison Index 1 | . . . . . . . 1 . . . Alert Level 1 | . . . . . . . . 1 . . Unreport Threat 1 | . . . 1 . . . . . . . Locate Traps 1 | . 1 . . . . . . . . . Hauler Manifests 1 | . 1 . . . . . . . . . Zone Layout 3 | . 1 . . . . . 2 . . . EX-Prototype ID Bank 1 | . . . . . 1 . . . . . Fabricator Hacks 2 | . . . . . . . . 2 . . Load Schematic 1 | . . . . . . . . 1 . . Build 1 | . . . . . . . . 1 . . Repair Station Hacks 4 | . 2 . 2 . . . . . . . Scan Component 2 | . 1 . 1 . . . . . . . Repair 2 | . 1 . 1 . . . . . . . Recycling Unit Hacks 7 | . 2 . 2 . . . . 3 . . Report Inventory 6 | . 2 . 2 . . . . 2 . . Retrieve Components 1 | . . . . . . . . 1 . . Scanalyzer 6 | . . . . . . . 5 1 . . Insert Component 3 | . . . . . . . 2 1 . . Analyze 3 | . . . . . . . 3 . . . Garrison Access Hacks . | . . . . . . . . . . . Unauthorized Hacks 30 | . 6 . 10 . . . 8 6 . . Terminals 27 | . 6 . 8 . . . 8 5 . . Track 3 | . . . 1 . . . 1 1 . . Assimilate 2 | . . . 1 . . . 1 . . . Botnet 19 | . 5 . 5 . . . 5 4 . . Operators 3 | . 1 . 1 . . . 1 . . . Fabricators . | . . . . . . . . . . . Repair Stations . | . . . . . . . . . . . Recycling Units 3 | . . . 2 . . . . 1 . . Mask 3 | . . . 2 . . . . 1 . . Scanalyzers . | . . . . . . . . . . . Garrison Access . | . . . . . . . . . . . Data Cores Recovered 1 | . . . 1 . . . . . . . Used 1 | . . . 1 . . . . . . . Hacking Detections 39 | . 9 . 13 . . . 7 10 . . Full Trace Events 5 | . . . 1 . . . 1 3 . . Feedback Events 2 | . . . . . . . . 2 . . Corruption 2 | . . . . . . . . 2 . . Feedback Blocked . | . . . . . . . . . . . Robot Schematics Acquired . | . . . . . . . . . . . Robots Built . | . . . . . . . . . . . Matter . | . . . . . . . . . . . Time . | . . . . . . . . . . . Total Robot Build Rating . | . . . . . . . . . . . Part Schematics Acquired 4 | . . . . . . . 4 . . . Parts Built 1 | . . . . . . . . 1 . . Matter 285 | . . . . . . . . 285 . . Time 76 | . . . . . . . . 76 . . Total Part Build Rating 5 | . . . . . . . . 5 . . Parts Repaired 2 | . 1 . 1 . . . . . . . Time 58 | . 26 . 32 . . . . . . . Parts Recycled . | . . . . . . . . . . . Recycled Matter . | . . . . . . . . . . . Retrieved Matter . | . . . . . . . . . . . Retrieved Components 1 | . . . . . . . . 1 . . Parts Scanalyzed 3 | . . . . . . . 2 1 . . Part Schematics Acquired 2 | . . . . . . . 2 . . . Parts Damaged 1 | . . . . . . . 1 . . . Bothacking | -11 -10 -10 -9 -9 -9 -8 -8 -7 -7 -7 ------------ Run | Scr Mat Min Mat Min Exi Min Mat Fac Low Low Used RIF Installer . | . . . . . . . . . . . Robots Hacked 1 | . . . . . . . . 1 . . Non-combat 1 | . . . . . . . . 1 . . Combat . | . . . . . . . . . . . Robot Hacks Applied 1 | . . . . . . . . 1 . . find_chute 1 | . . . . . . . . 1 . . Relay Couplers Released . | . . . . . . . . . . . Robots Rewired . | . . . . . . . . . . . Allies Hacked . | . . . . . . . . . . . Hacks Repelled . | . . . . . . . . . . . Allies | -11 -10 -10 -9 -9 -9 -8 -8 -7 -7 -7 -------- Run | Scr Mat Min Mat Min Exi Min Mat Fac Low Low Total Allies 7 | . . 5 1 . . . 1 . . . Largest Group 3 | . . 3 3 1 1 1 1 . . . Highest-Rated Group 59 | . . 59 59 10 10 10 10 . . . Highest-Rated Ally 31 | . . 31 31 10 10 10 10 . . . Total Orders 7 | . . . . 3 4 . . . . . STAY 4 | . . . . 2 2 . . . . . FOLLOW 3 | . . . . 1 2 . . . . . Ally Attacks 27 | . . 23 4 . . . . . . . Total Damage 271 | . . 250 21 . . . . . . . Kills 7 | . . 6 1 . . . . . . . Allies Corrupted . | . . . . . . . . . . . Allies Melted . | . . . . . . . . . . . Intel | -11 -10 -10 -9 -9 -9 -8 -8 -7 -7 -7 ------- Run | Scr Mat Min Mat Min Exi Min Mat Fac Low Low Robot Analysis Total 9 | . 5 . 3 . . . 1 . . . Derelict Logs Recovered 3 | . . 1 . 1 . . . . . 1 Drone Launches . | . . . . . . . . . . . Drone Recoveries . | . . . . . . . . . . . Exploration | -11 -10 -10 -9 -9 -9 -8 -8 -7 -7 -7 ------------- Run | Scr Mat Min Mat Min Exi Min Mat Fac Low Low Turns Passed 16429 | 72 1378 1101 2639 596 3782 282 1321 3734 953 571 Spaces Moved 7123 | 36 664 568 1122 317 1626 112 503 1419 477 279 Core 4 | 4 . . . . . . . . . . Treads 6029 | . 626 568 1122 317 1626 112 503 1155 . . Legs 757 | . . . . . . . . 1 477 279 Wheels 333 | 32 38 . . . . . . 263 . . Hover . | . . . . . . . . . . . Flight . | . . . . . . . . . . . Fastest Speed 50 | 50 80 180 180 180 160 220 205 150 180 180 Average Speed 190 | 76 169 180 180 180 193 220 212 207 180 180 Slowest Speed 280 | 80 180 180 180 180 220 220 220 280 180 180 Overloaded Moves . | . . . . . . . . . . . Propulsion Burnouts . | . . . . . . . . . . . Robots Hopped . | . . . . . . . . . . . Cave-ins Triggered . | . . . . . . . . . . . Exploration Rate (%) 59 | 3 97 96 87 70 91 35 37 29 63 44 Regions Visited 10 Branch Regions 6 Pre-discovered Areas 1 | . . . . . 1 . . . . . Known Exits Taken 4 | . 1 1 1 . . . . 1 . . Unknown Exits Taken 6 | 1 . . . 1 1 1 1 . 1 . Scrap Searched 8 | . . 2 . 1 . . . . 4 1 Spaces Dug 40 | . . . 8 . 12 . 5 12 . 3 Terrain Destroyed 256 | . 2 5 11 . 13 26 5 189 2 3 Melee 16 | . . . . . . . 5 9 . 2 Projectile 26 | . 2 . 11 . . . . 10 2 1 AOE 214 | . . 5 . . 13 26 . 170 . . Terrain Rammed . | . . . . . . . . . . . Walls Destroyed . | . . . . . . . . . . . Machines Disabled . | . . . . . . . . . . . Actions | -11 -10 -10 -9 -9 -9 -8 -8 -7 -7 -7 --------- Run | Scr Mat Min Mat Min Exi Min Mat Fac Low Low Total 8790 | 59 805 622 1531 347 1967 130 624 1842 542 321 Wait 519 | . 31 13 230 20 35 8 25 109 31 17 Move 7113 | 35 663 567 1121 316 1625 111 502 1418 476 279 Hop . | . . . . . . . . . . . Pick Up 145 | 7 22 7 15 5 60 . 3 19 5 2 Fast Attach 47 | 6 4 1 5 . 8 . 2 17 2 2 Attach 41 | . 1 1 2 1 11 . 3 20 2 . Detach 14 | . 3 1 . . 5 . . 4 . 1 Swap 107 | . 10 4 25 . 11 2 13 35 5 2 Drop 132 | 1 14 10 25 5 46 . 5 21 3 2 Fire 616 | 10 55 17 107 . 162 9 64 178 11 3 Melee 43 | . . . . . . . 7 17 6 13 Ram . | . . . . . . . . . . . Kick . | . . . . . . . . . . . Crush 6 | . 2 1 1 . . . . 2 . . Escape Stasis 1 | . . . . . . . . 1 . . Rewire 1 | . . . . . . . . . 1 . Trap 5 | . . . . . 4 . . 1 . . Miscellaneous . | . . . . . . . . . . . Route ------- -11/Scrapyard -10/Materials (discovered 5 exits: *Mat x3 / *Min x2) -10/Mines (discovered 2 exits: *Mat x2) -9/Materials (discovered 6 exits: *Mat x2 / *Min x2 / *Sto x2) -9/Mines -9/Exiles -8/Mines -8/Materials -7/Factory (discovered 3 exits: [*Fac] / *Low x2) -7/Lower Caves -7/Lower Caves (discovered 1 exit: [*Fac]) History --------- Turn | Location | Event 7 | -11/Scrapyard | Discovered new exit (range 16) 73 | -11/Scrapyard | Entered Materials 73 | -10/Materials | Discovered new exit (range 8) 109 | -10/Materials | Repaired Mining Laser 307 | -10/Materials | Build established: Mutant 333 | -10/Materials | Discovered new exit (range 3) 507 | -10/Materials | Identified exit to Mines 507 | -10/Materials | Central database locked down 765 | -10/Materials | Discovered new exit (range 13) 843 | -10/Materials | Identified exit to Materials 986 | -10/Materials | Discovered exit to Materials (range 16) 1451 | -10/Materials | Entered Mines 1532 | -10/Mines | Found a hidden stash of uninstalled traps 1694 | -10/Mines | Discovered exit to Materials (range 10) 1827 | -10/Mines | Assisted by bots powering up and referring to "LRC-V3" 1872 | -10/Mines | Discovered exit to Materials (range 12) 2552 | -10/Mines | Entered Materials 2552 | -9/Materials | Accompanied by 3 allies 2552 | -9/Materials | Evolved 2 slots: Utility x2 2553 | -9/Materials | Identified exit to Storage 2557 | -9/Materials | Led the pair of lost Derelicts to an unsafe place 2638 | -9/Materials | Discovered new exit (range 5) 3027 | -9/Materials | Discovered new exit (range 16) 3253 | -9/Materials | Discovered exit to Storage (range 5) 3362 | -9/Materials | Identified exit to Mines 3371 | -9/Materials | Build established: Hauler-Mutant 4169 | -9/Materials | Central database locked down 4414 | -9/Materials | Repaired Imp. Treads 4460 | -9/Materials | Discovered new exit (range 14) 5191 | -9/Materials | Entered Mines 5191 | -9/Mines | Accompanied by 1 ally 5269 | -9/Mines | A weapon hastily lodged in a ceiling crevice suddenly fell to the ground 5358 | -9/Mines | Received a Rocket Launcher from a helpful Derelict 5429 | -9/Mines | Learned Materials emergency access door positions 5451 | -9/Mines | Met a Derelict who couldn't figure out how to use a Trap Extractor 5617 | -9/Mines | Deemed a non-threat by the Exiles lab entrance 5619 | -9/Mines | Discovered new exit (range 5) 5672 | -9/Mines | Met a Derelict shopkeep closing up shop 5723 | -9/Mines | Assembled infested the area 5787 | -9/Mines | Entered Exiles 5787 | -9/Exiles | Accompanied by 1 ally 5832 | -9/Exiles | Met 8R-AWN 5868 | -9/Exiles | Met EX-HEX 6016 | -9/Exiles | Met EX-DEC 6062 | -9/Exiles | Learned location of Zion (-7) 6135 | -9/Exiles | Discovered new exit (range 10) 6302 | -9/Exiles | Met EX-BIN 6556 | -9/Exiles | Aligned with FarCom system 6558 | -9/Exiles | Given EX-Vault access code 6606 | -9/Exiles | Opened EX-Vault 6622 | -9/Exiles | Found Gui. Plasma Cannon 6625 | -9/Exiles | Found PSU Rigger 6632 | -9/Exiles | Found Firepult 6679 | -9/Exiles | Warned to stay clear of 0b10 Research branches 7009 | -9/Exiles | Attacked by the Exiles 7363 | -9/Exiles | Build established: Mutant 7809 | -9/Exiles | Core integrity fell below 50% 7977 | -9/Exiles | Destroyed 8R-AWN 7990 | -9/Exiles | Found Prototype Ballistic Gun 8001 | -9/Exiles | Found Prototype Ballistic Gun 8434 | -9/Exiles | Core integrity fell below 20% 8492 | -9/Exiles | Destroyed EX-BIN 8507 | -9/Exiles | Destroyed EX-HEX 8514 | -9/Exiles | Build established: Hauler-Mutant 8581 | -9/Exiles | Destroyed EX-DEC 8638 | -9/Exiles | Found Deploy-a-Sentry 9003 | -9/Exiles | Found Prototype Device 9003 | -9/Exiles | Identified AS-neutralizer No. 17b 9064 | -9/Exiles | Found Prototype Protection 9071 | -9/Exiles | Found Prototype Processor 9291 | -9/Exiles | Identified 8R-AWN's Boregun (x2) 9569 | -9/Exiles | Stole four prototypes: PSU Rigger, Gui. Plasma Cannon, Firepult, Deploy-a-Sentry 9569 | -9/Exiles | Entered Mines 9569 | -8/Mines | Accompanied by 1 ally 9799 | -8/Mines | Discovered new exit (range 10) 9851 | -8/Mines | Entered Materials 9851 | -8/Materials | Evolved 2 slots: Utility x2 10242 | -8/Materials | Discovered new exit (range 12) 10647 | -8/Materials | Identified Exp. Targeting Computer 10849 | -8/Materials | Central database locked down 11172 | -8/Materials | Entered Factory 11172 | -7/Factory | Evolved 2 slots: Utility x2 11425 | -7/Factory | Lost 3 parts (2n1w) 11766 | -7/Factory | Garrison activated, responded to threat 11785 | -7/Factory | Lost 3 parts (1u2w) 11808 | -7/Factory | Destroyed 8 combat bots 12772 | -7/Factory | First assault squad dispatched 12921 | -7/Factory | Core integrity fell below 50% 13570 | -7/Factory | Discovered new exit (range 15) 13682 | -7/Factory | Identified exit to Lower Caves 14509 | -7/Factory | Fabricated Exp. Targeting Computer (x1) 14636 | -7/Factory | Core integrity fell below 20% 14679 | -7/Factory | Lost 5 parts (2n1u2w) 14906 | -7/Factory | Entered Lower Caves 15708 | -7/Lower Caves | Discovered new exit (range 6) 15711 | -7/Lower Caves | Attracted the attention of an 0b10 checkpoint 15859 | -7/Lower Caves | Entered another Lower Caves area 15859 | -7/Lower Caves | Spotted GD-1C0(f) 15860 | -7/Lower Caves | Encountered a Master Thief 15860 | -7/Lower Caves | PSU Rigger stolen by Master Thief 15862 | -7/Lower Caves | Spotted U0-97K(f) 15863 | -7/Lower Caves | Encountered a Master Thief 15872 | -7/Lower Caves | Gui. Plasma Cannon stolen by Master Thief 15911 | -7/Lower Caves | Discovered new exit (range 5) 16047 | -7/Lower Caves | Encountered a Warlord checkpoint 16217 | -7/Lower Caves | Attracted the attention of an 0b10 checkpoint 16291 | -7/Lower Caves | Learned Factory stockpile data 16426 | -7/Lower Caves | Attacked by a delusional Derelict stockpiling parts 16430 | -7/Lower Caves | Destroyed by DD-2ZW(M) with Battle Cannon Last Messages --------------- 16260_ Y-54 Guardian destroyed. 16265_ Imp. Heat Sink fries itself beyond repair. 16265_ Acquired Flak Gun. 16266_ Acquired 35 matter. 16271_ Lgt. Treads fries itself beyond repair. 16271_ Acquired Imp. Deuterium Engine. 16272_ Acquired 10 matter. 16276_ Acquired Gatling Laser. 16291_ Acquired derelict log, extracted data. Data stored: Factory stockpile data. 16296_ Searching scrap... 16296_ Found Med. Treads. 16296_ Found Arm. Huge Wheel. 16296_ Found 36 Matter. 16298_ Dropped Mak. Power Source. 16299_ Dropped Imp. Treads. 16301_ Acquired Arm. Huge Wheel. 16424_ Locked Door breached. 16426_ DD-2ZW(M): "Sorry but these parts are key to ensuring the security of my future empire, and I can't risk letting you telling anyone about it." Map ----- +----------------------------------------------------+ | ?????????????????????????????????????# " " % | | ?????????????????????????????????????# =""" "" ## | | ???????????????????????????????#?????#%="""" "" #? | | ?????????????????????????????????????#* "" " #? | | ???????????????????????????#?????????# #? | | ???????????????????????????????????#?# #? | | ?????????????????????????????????????###### ##? | | ?????????????????????????????????????????# #?? | | ?????????????????????????????????????????## #?? | | ??????????????????????????????????????????# ##? | | ??????????????????????????????????????????# ## | | ??????????????????????????????????????????#" | | ????????????????????????????????????????###" " | | ????????????????????????????????????????# ## | | ????????????????????????????????????????## # | | ?????????????????????????????????????????# # | | ???????????????????????????????????????### # | | ???????????????????????????????????????# | | ???????????????????????????????????????# # | | ???????????????????????????????????????# [ # | | ???????????????????????????????????????# | | ????????????????????????####???????????# | | ???????????????####?????#]]??????????###"" " # | | ??????????????## ????? ?????????## ### ### | | ??????????????# ????#M#?????##### ## ##?? | | ??????????????# ???##@#??##?# #??? | | ??????????????? ??## ##?# ### #??? | | ???????????????# ?## ## ### ########??? | | ???????????????# ?# #?## #?????????? | | ???????????????# ?# ##??## #?????????? | | ???????????????# ?# ######## #?????????? | | ???????#????#??# ## ##?## #?????????? | | ???????# ### ## %! ##??# ##?????????? | | ??????## = ###?# #??????????? | | ????? #### ##??????????? | | ????? ### ##??????????? | | ????? ## ##?????????? | | ????? ## # ##????????? | | ?????? ?## ## #????????? | | ??????? ### #????????? | | ???????### ## ### #????????? | | ?????????# ?## ## ## #???????? | | ????????# ??## ## ##? #?????? | | ???????# ???# #??% ????? | | ???????# ???# #???? | | ???????? ???# #####???? | | ????????###### ????## ## ### ###???????? | | ?????????????### ?????##### ##?? ##?????????? | | ???????????????# ??????????## ##??? #??????????? | | ???????????????? ???????????####????? ??????????? | +----------------------------------------------------+ Best States ------------- Heat Dissipation 38 Energy Generation 19 Energy Capacity 310 Matter Stores 300 Matter Capacity 300 Sight Range 16 Robot Scan Range 16 Terrain Scan Range 24 Terrain Scan Density 10 Additional Mass Support 12 Armor Coverage 375 Resistance: KI 30 Power Shielding 66 Utility Shielding 66 Evasion (%) 44 Core Analysis 10 Recoil Reduction 2 Salvage Targeting 1 Offensive Hacking 10 Defensive Hacking 10 Item Schematics ----------------- Exp. Heat Sink | -8/Materials | Scanalyzed Exp. Targeting Computer | -8/Materials | Scanalyzed Hacking Suite | -8/Materials | Hacked System Shield | -8/Materials | Hacked Robot Schematics ------------------ None Fabricated ------------ Exp. Targeting Computer | x1 | -7/Factory Alien Tech Used ----------------- None Achievements -------------- None Challenges ------------ None Game ------ Seed PotentialOpticalRegulator Manual? 0 Play Time 01:52:08 Cumulative 160.4 hours Start 2020.12.24 @ 21:10:20 End 2020.12.25 @ 09:07:44 Sessions 3 Manual Loads 0 Difficulty Rogue Special Mode None Game No. 145 Rogue 145 Adventurer 0 Explorer 0 Win Type - Total 0 Types 0/0/0/0/0/0/0/0/0 Lore% 57 Gallery% 66 Achievement% 54 Wizard Run 0 Options --------- ASCII 0 Keyboard 1 Movement Numpad Keybinds 0 Fullscreen 1 Font 12/Terminus Map View 83x54 Tactical HUD 1 Map Filters NONE Filters NONE Steam 1 RUN: 9b2410bb-9773-4418-a855-0dea7ebb6bb4